bitfinex/quotes_SOLUSD_20250704
["timestamp","ask_amount","ask_price","bid_price","bid_amount"]
[1751616017063,6.36561842,150.65,150.61,6.36561842]
[1751616018161,13.00357549,150.65,150.6,6.36561842]
[1751616018741,6.63795707,150.65,150.6,6.36561842]
[1751616018942,6.63795707,150.65,150.58,6.64096172]
[1751616018943,6.0488,150.69,150.63,6.36561842]
[1751616019238,6.36561842,150.67,150.63,6.36561842]
[1751616020052,6.36561842,150.68,150.64,6.36561842]
[1751616020259,19.05087349,150.69,150.64,6.36561842]
[1751616020470,6.36561842,150.68,150.64,6.36561842]
[1751616021467,6.36561842,150.68,150.63,13.00414393]
[1751616021649,6.36561842,150.68,150.6,16.59961176]
[1751616021856,6.36561842,150.68,150.63,6.36561842]
[1751616022078,6.6370213,150.67,150.63,6.36561842]
[1751616022241,6.36561842,150.68,150.63,6.36561842]
[1751616022751,13.00230547,150.68,150.61,6.63966536]
[1751616022942,6.63668705,150.68,150.63,6.36561842]
[1751616023143,13.00230547,150.68,150.63,6.36561842]
[1751616023564,6.36561842,150.67,150.63,6.36561842]
[1751616024969,13.0028616,150.67,150.63,6.36561842]
[1751616025352,13.0028616,150.67,150.62,6.36561842]
[1751616025968,13.0028616,150.67,150.58,1.5624]
[1751616025969,6.36561842,150.66,150.58,1.5624]
[1751616026137,6.36561842,150.66,150.56,22.9693731]
[1751616026138,6.36561842,150.64,150.59,39.0060319]
[1751616026462,6.36561842,150.64,150.6,6.36561842]
[1751616026676,6.36561842,150.65,150.6,6.36561842]
[1751616026845,6.63658083,150.68,150.59,32.64041348]
[1751616027044,6.36561842,150.66,150.61,6.36561842]
[1751616027247,6.36561842,150.65,150.6,6.36561842]
[1751616027664,6.36561842,150.65,150.59,32.64041348]
[1751616027847,6.36561842,150.65,150.6,6.36561842]
[1751616028240,13.00384466,150.65,150.6,6.36561842]
[1751616029675,13.00384466,150.65,150.59,32.64041348]
[1751616029876,13.00384466,150.65,150.6,6.36561842]
[1751616030882,13.00384466,150.65,150.59,32.64038991]
[1751616031165,6.63822624,150.65,150.6,6.36561842]
[1751616031383,13.00384466,150.65,150.6,6.36561842]
[1751616031871,6.63822624,150.65,150.59,32.64038991]
[1751616032068,6.36561842,150.66,150.6,6.36561842]
[1751616032383,6.36561842,150.65,150.6,6.36561842]
[1751616032954,6.36561842,150.64,150.59,26.0]
[1751616033152,6.36561842,150.64,150.59,32.36561842]
[1751616033551,6.36561842,150.64,150.59,39.00604852]
[1751616033752,6.36561842,150.65,150.6,6.36561842]
[1751616033971,6.36561842,150.65,150.59,32.6404301]
[1751616034146,6.36561842,150.62,150.57,32.36561842]
[1751616034346,6.36561842,150.63,150.58,26.0]
[1751616034772,6.36561842,150.62,150.58,32.36561842]
[1751616035677,13.00489502,150.62,150.58,32.36561842]
[1751616036080,13.00489502,150.62,150.58,6.36561842]
[1751616036482,13.00489502,150.62,150.57,6.64113089]
[1751616036782,13.00489502,150.62,150.58,6.36561842]
[1751616037577,6.63878377,150.63,150.58,6.36561842]
[1751616037758,6.36561842,150.62,150.58,6.36561842]
[1751616039581,6.36561842,150.62,150.58,13.00660482]
[1751616040672,13.00484439,150.62,150.58,13.00660482]
[1751616041381,6.36561842,150.62,150.58,13.00660482]
[1751616041674,6.36561842,150.63,150.58,13.00660482]
[1751616041876,6.36561842,150.62,150.56,6.64187035]
[1751616042257,6.36561842,150.62,150.58,6.36561842]
[1751616042461,8.29402672,150.64,150.56,6.36561842]
[1751616042462,6.36561842,150.61,150.56,6.36561842]
[1751616042663,13.00538984,150.61,150.56,13.00736361]
[1751616043168,6.63977142,150.61,150.56,13.00736361]
[1751616043356,13.00538984,150.61,150.56,13.00736361]
[1751616043977,13.00538984,150.61,150.57,6.36561842]
[1751616044278,6.63977142,150.61,150.57,6.36561842]
[1751616044586,13.00538984,150.61,150.57,6.36561842]
[1751616044756,6.36561842,150.61,150.57,6.36561842]
[1751616045164,6.36561842,150.61,150.56,13.00733847]
[1751616045570,6.36561842,150.61,150.56,6.36561842]
[1751616047089,6.36561842,150.6,150.56,6.36561842]
[1751616048592,13.00596344,150.6,150.55,13.00791526]
[1751616050587,6.36561842,150.59,150.55,6.64229684]
[1751616050797,6.36561842,150.6,150.55,13.00791526]
[1751616051793,13.00586041,150.6,150.55,13.00791526]
[1751616053091,13.00528378,150.61,150.55,13.00791526]
[1751616053983,6.36561842,150.6,150.55,6.64229684]
[1751616054192,6.36561842,150.57,150.54,7.92]
[1751616054487,6.36561842,150.57,150.51,13.00929306]
[1751616054488,6.36561842,150.56,150.51,13.00929306]
[1751616054663,1.5333,150.57,150.52,6.36561842]
[1751616054862,7.89891842,150.57,150.52,6.36561842]
[1751616055084,7.89891842,150.57,150.53,6.36561842]
[1751616055286,6.36561842,150.56,150.51,6.36561842]
[1751616055797,7.89891842,150.57,150.49,44.64964886]
[1751616055986,6.36561842,150.56,150.52,6.36561842]
[1751616056368,14.54040127,150.57,150.52,6.36561842]
[1751616057595,1.5333,150.57,150.53,13.00881246]
[1751616057772,1.5333,150.57,150.54,6.36561842]
[1751616057968,42.59930728,150.61,150.55,6.36561842]
[1751616058170,13.00572466,150.6,150.55,6.36561842]
[1751616058869,13.00572466,150.6,150.53,6.64319404]
[1751616058870,6.64010624,150.6,150.56,6.36561842]
[1751616059486,13.00572466,150.6,150.56,6.36561842]
[1751616059993,13.00572466,150.6,150.55,6.36561842]
[1751616060190,6.36561842,150.59,150.55,6.36561842]
[1751616060494,6.36561842,150.57,150.53,6.36561842]
[1751616061076,6.36561842,150.58,150.53,6.36561842]
[1751616061273,6.36561842,150.59,150.54,6.36561842]
[1751616061475,6.36561842,150.59,150.52,18.64964886]
[1751616061670,27.5649,150.61,150.56,6.36561842]
[1751616061884,33.93051842,150.61,150.56,6.36561842]
[1751616063090,40.5703804,150.61,150.56,6.36561842]
[1751616066088,6.36561842,150.6,150.55,6.36561842]
[1751616066297,40.5703804,150.61,150.56,6.36561842]
[1751616067883,6.36561842,150.6,150.54,6.64239643]
[1751616068092,6.36561842,150.59,150.52,26.0]
[1751616068292,6.36561842,150.59,150.54,6.36561842]
[1751616069276,6.64098817,150.58,150.54,6.36561842]
[1751616069679,13.00572466,150.6,150.55,6.36561842]
[1751616070292,6.64010624,150.6,150.55,6.36561842]
[1751616070492,12.82323938,150.67,150.54,6.64275246]
[1751616070493,7.631,150.66,150.59,6.36561842]
[1751616070797,7.631,150.66,150.63,6.36561842]
[1751616071179,14.26864564,150.66,150.63,6.36561842]
[1751616074187,6.36561842,150.64,150.57,26.0]
[1751616074383,6.36561842,150.61,150.57,6.36561842]
[1751616074783,6.36561842,150.6,150.56,14.22561842]
[1751616076105,13.00601128,150.6,150.56,14.22561842]
[1751616076614,13.00543891,150.61,150.57,6.36561842]
[1751616076916,6.63982049,150.61,150.56,14.50183576]
[1751616077088,6.63982049,150.61,150.58,6.36561842]
[1751616077289,6.36561842,150.62,150.58,6.36561842]
[1751616077808,6.36561842,150.63,150.59,6.36561842]
[1751616078512,13.00446156,150.63,150.59,6.36561842]
[1751616079395,13.00446156,150.63,150.58,6.64071524]
[1751616079396,6.63884314,150.63,150.58,6.64071524]
[1751616079596,6.63884314,150.63,150.6,6.36561842]
[1751616081804,6.36561842,150.61,150.57,6.36561842]
[1751616082105,6.36561842,150.61,150.56,14.22561842]
[1751616082325,6.36561842,150.6,150.56,7.86]
[1751616082606,6.36561842,150.59,150.56,7.86]
[1751616082995,23.23580257,150.63,150.56,7.86]
[1751616083196,6.36561842,150.6,150.56,7.86]
[1751616084018,6.36561842,150.58,150.54,6.36561842]
[1751616084695,14.21024718,150.59,150.52,26.0]
[1751616084696,6.36561842,150.57,150.52,26.0]
[1751616084890,6.36561842,150.57,150.53,6.36561842]
[1751616085921,13.00746118,150.57,150.53,6.36561842]
[1751616086786,6.36561842,150.56,150.5,40.44441154]
[1751616086988,6.64184276,150.57,150.52,6.36561842]
[1751616086989,13.00746118,150.57,150.52,6.36561842]
[1751616087219,6.64184276,150.57,150.53,6.36561842]
[1751616087513,13.00677881,150.58,150.51,18.64964886]
[1751616087720,13.00677881,150.58,150.54,6.36561842]
[1751616087917,13.00677881,150.58,150.52,6.64363539]
[1751616088088,6.36561842,150.57,150.52,6.36561842]
[1751616088896,6.36561842,150.55,150.5,7.8]
[1751616089195,6.36561842,150.54,150.5,14.16561842]
[1751616089611,6.36561842,150.54,150.5,7.8]
[1751616089811,6.36561842,150.53,150.5,7.8]
[1751616090014,6.64362604,150.53,150.5,7.8]
[1751616091603,6.64281531,150.54,150.5,14.16561842]
[1751616092797,6.64281531,150.54,150.5,7.8]
[1751616093002,13.00843373,150.54,150.5,14.16561842]
[1751616094409,13.00843373,150.54,150.5,7.8]
[1751616095113,6.36561842,150.54,150.5,7.8]
[1751616095921,6.36561842,150.54,150.5,14.16561842]
[1751616096114,13.00792994,150.55,150.5,14.16561842]
[1751616096626,13.00792994,150.55,150.5,14.44448001]
[1751616096792,13.00792994,150.55,150.51,6.36561842]
[1751616097307,13.00792994,150.55,150.5,14.44448001]
[1751616097508,13.00792994,150.55,150.51,6.36561842]
[1751616098698,13.00792994,150.55,150.5,14.44448001]
[1751616098922,13.00792994,150.55,150.5,7.8]
[1751616099112,13.00792994,150.55,150.51,6.36561842]
[1751616100417,6.64196602,150.56,150.52,6.36561842]
[1751616100719,13.00758444,150.56,150.52,6.36561842]
[1751616101805,6.64196602,150.56,150.52,6.36561842]
[1751616102410,6.64154061,150.57,150.51,6.6438814]
[1751616102614,6.64154061,150.57,150.54,6.36561842]
[1751616104322,7.5697,150.59,150.56,6.36561842]
[1751616104707,14.2104214,150.59,150.56,6.36561842]
[1751616105127,14.2104214,150.59,150.53,6.64290152]
[1751616105315,14.2104214,150.59,150.55,6.36561842]
[1751616105923,14.2104214,150.59,150.56,6.36561842]
[1751616108938,1.5185,150.59,150.57,6.36561842]
[1751616109108,6.63974583,150.61,150.58,6.36561842]
[1751616109420,6.83940624,150.62,150.6,6.36561842]
[1751616110435,0.2,150.62,150.6,6.36561842]
[1751616110926,0.2,150.62,150.61,6.36561842]
[1751616111109,6.83922453,150.62,150.61,6.36561842]
[1751616111307,6.83922453,150.62,150.6,6.36561842]
[1751616112009,6.83922453,150.62,150.58,6.36561842]
[1751616112532,13.20484295,150.62,150.58,6.36561842]
[1751616113635,29.80290429,150.62,150.58,6.36561842]
[1751616115008,6.83922453,150.62,150.58,6.36561842]
[1751616118315,6.83922453,150.62,150.56,6.64186352]
[1751616118517,6.83922453,150.62,150.58,6.36561842]
[1751616121138,29.80290429,150.62,150.57,6.36561842]
[1751616122144,6.36561842,150.61,150.57,6.36561842]
[1751616122344,6.36561842,150.6,150.55,6.36561842]
[1751616122643,6.36561842,150.6,150.56,6.36561842]
[1751616123335,6.36561842,150.6,150.55,6.36561842]
[1751616123639,6.64054718,150.59,150.55,6.36561842]
[1751616123825,6.64054718,150.59,150.53,6.64310241]
[1751616123826,6.64054718,150.59,150.56,6.36561842]
[1751616124027,6.64029536,150.6,150.58,6.36561842]
[1751616124433,0.2,150.62,150.59,6.36561842]
[1751616124640,0.2,150.62,150.61,6.36561842]
[1751616124946,0.2,150.62,150.61,25.01526728]
[1751616125417,0.2,150.62,150.61,44.64964886]
[1751616125613,0.2,150.62,150.61,62.97598947]
[1751616125835,0.2,150.68,150.61,75.93890789]
[1751616126026,0.2,150.68,150.67,6.36561842]
[1751616132844,0.2,150.68,150.67,13.00263972]
[1751616133052,0.2,150.68,150.67,6.36561842]
[1751616133949,0.2,150.68,150.65,25.2872669]
[1751616134145,0.2,150.68,150.67,6.36561842]
[1751616136076,0.2,150.68,150.67,6.6370213]
[1751616136352,0.2,150.68,150.67,6.36561842]
[1751616148251,0.2,150.68,150.64,32.63814849]
[1751616148252,13.20219925,150.68,150.63,6.36561842]
[1751616148758,6.36561842,150.67,150.63,6.36561842]
[1751616149160,29.79365133,150.68,150.63,6.36561842]
[1751616150063,13.20219925,150.68,150.63,6.36561842]
[1751616150265,13.20219925,150.68,150.64,6.36561842]
[1751616150843,6.83658083,150.68,150.64,6.36561842]
[1751616151035,13.20219925,150.68,150.64,6.36561842]
[1751616151456,6.83658083,150.68,150.64,6.36561842]
[1751616152263,6.83658083,150.68,150.65,6.36561842]
[1751616154254,6.83658083,150.68,150.64,6.36561842]
[1751616156453,6.83658083,150.68,150.65,6.36561842]
[1751616159556,6.83658083,150.68,150.64,6.36561842]
[1751616159751,6.36561842,150.66,150.59,26.0]
[1751616159963,6.36561842,150.63,150.58,7.72]
[1751616160166,6.36561842,150.61,150.58,7.72]
[1751616161376,13.00484295,150.62,150.58,7.72]
[1751616162771,6.36561842,150.6,150.55,6.46561842]
[1751616162951,6.36561842,150.57,150.55,0.1]
[1751616163565,6.64187035,150.56,150.55,0.1]
[1751616164067,13.00748877,150.56,150.55,0.1]
[1751616165050,6.64187035,150.56,150.55,0.1]
[1751616167073,13.00660659,150.58,150.55,0.1]
[1751616167380,6.64098817,150.58,150.55,0.1]
[1751616167547,13.00634637,150.59,150.55,6.46561842]
[1751616167960,6.64072795,150.59,150.55,6.46561842]
[1751616168361,6.64072795,150.59,150.55,0.1]
[1751616168675,6.64072795,150.59,150.55,6.46561842]
[1751616171381,13.00588093,150.6,150.56,6.36561842]
[1751616171569,6.64026251,150.6,150.56,6.36561842]
[1751616172686,6.36561842,150.6,150.55,0.1]
[1751616172891,6.36561842,150.59,150.55,6.46561842]
[1751616173674,23.23882876,150.61,150.55,6.46561842]
[1751616173875,6.36561842,150.59,150.55,6.46561842]
[1751616174162,23.23882876,150.61,150.55,6.46561842]
[1751616174467,6.36561842,150.59,150.55,6.46561842]
[1751616174681,6.64098817,150.58,150.55,6.46561842]
[1751616176587,23.23882876,150.61,150.55,6.46561842]
[1751616176763,6.36561842,150.6,150.55,6.46561842]
[1751616179568,6.36561842,150.6,150.56,6.36561842]
[1751616180862,29.60444718,150.61,150.56,6.36561842]
[1751616182992,6.63943125,150.62,150.59,6.36561842]
[1751616183199,7.7192,150.67,150.61,6.36561842]
[1751616183368,24.7908684,150.67,150.63,6.36561842]
[1751616183572,24.7908684,150.67,150.62,6.36561842]
[1751616183573,31.15648682,150.67,150.62,6.36561842]
[1751616185069,31.15648682,150.67,150.63,6.36561842]
[1751616185070,8.19831514,150.67,150.63,6.36561842]
[1751616185300,14.56393356,150.67,150.63,6.36561842]
[1751616186788,8.19831514,150.67,150.63,6.36561842]
[1751616186992,14.56393356,150.67,150.63,6.36561842]
[1751616187376,14.56393356,150.67,150.62,6.36561842]
[1751616187597,6.36561842,150.63,150.57,6.36561842]
[1751616187781,6.36561842,150.62,150.57,6.36561842]
[1751616188084,26.0,150.64,150.57,6.36561842]
[1751616188085,6.36561842,150.61,150.57,6.36561842]
[1751616188492,6.36561842,150.62,150.57,6.36561842]
[1751616188868,6.63966536,150.61,150.57,6.36561842]
[1751616190893,13.00528378,150.61,150.57,6.36561842]
[1751616191112,6.63966536,150.61,150.57,6.36561842]
[1751616191401,13.00528378,150.61,150.57,6.36561842]
[1751616192596,13.00528378,150.61,150.55,6.74228406]
[1751616192787,13.00528378,150.61,150.57,6.36561842]
[1751616194398,13.00528378,150.61,150.56,6.36561842]
[1751616196123,6.63966536,150.61,150.56,6.36561842]
[1751616196304,13.00528378,150.61,150.56,6.36561842]
[1751616196977,13.00528378,150.61,150.55,0.1]
[1751616197184,6.36561842,150.6,150.56,6.36561842]
[1751616197399,6.63966536,150.61,150.56,6.36561842]
[1751616197400,13.00528378,150.61,150.56,6.36561842]
[1751616198903,6.36561842,150.59,150.55,0.1]
[1751616199084,6.64098817,150.58,150.55,6.46561842]
[1751616199409,6.64028254,150.6,150.57,6.36561842]
[1751616200495,6.63966536,150.61,150.57,6.36561842]
[1751616200890,13.00528378,150.61,150.57,6.36561842]
[1751616201712,13.00528378,150.61,150.56,6.36561842]
[1751616202504,26.0,150.64,150.56,6.36561842]
[1751616202505,6.64054718,150.59,150.56,6.36561842]
[1751616207395,6.64054718,150.59,150.55,0.1]
[1751616207597,6.64054718,150.59,150.56,6.36561842]
[1751616208893,6.63834306,150.64,150.58,6.36561842]
[1751616209095,6.63834306,150.64,150.56,6.36561842]
[1751616209096,6.63834306,150.64,150.61,6.36561842]
[1751616209304,6.1115,150.65,150.63,6.36561842]
[1751616209305,6.63796468,150.65,150.63,6.36561842]
[1751616209495,6.63746183,150.66,150.63,6.36561842]
[1751616210096,0.2,150.68,150.65,6.36561842]
[1751616210393,0.2,150.68,150.67,6.36561842]
[1751616212203,0.2,150.68,150.65,6.63776483]
[1751616212403,0.2,150.68,150.67,6.36561842]
[1751616212805,0.2,150.68,150.63,1.6116]
[1751616213137,13.20219925,150.68,150.64,6.36561842]
[1751616213808,6.83658083,150.68,150.63,6.36561842]
[1751616214014,6.36561842,150.66,150.62,6.36561842]
[1751616215923,25.02083291,150.68,150.62,6.36561842]
[1751616216222,6.63790242,150.65,150.62,6.36561842]
[1751616216392,6.63790242,150.65,150.61,13.92561842]
[1751616219525,6.6370213,150.67,150.62,6.36561842]
[1751616219729,6.36561842,150.66,150.62,6.36561842]
[1751616219918,6.36561842,150.66,150.61,7.56]
[1751616220093,6.36561842,150.66,150.61,13.92561842]
[1751616220526,6.6370213,150.67,150.61,7.56]
[1751616220717,6.63790242,150.65,150.61,13.92561842]
[1751616221324,6.63763528,150.66,150.62,6.36561842]
[1751616221732,6.63763528,150.66,150.63,6.36561842]
[1751616224136,1.7928,150.68,150.61,7.56]
[1751616224341,0.2,150.68,150.67,6.36561842]
[1751616226141,0.2,150.68,150.67,13.00263972]
[1751616226498,0.2,150.68,150.67,31.65228858]
[1751616228327,0.2,150.68,150.67,6.36561842]
[1751616228635,6.83658083,150.68,150.64,26.0]
[1751616228924,6.83658083,150.68,150.66,6.36561842]
[1751616229132,0.2,150.68,150.67,6.36561842]
[1751616232008,6.83658083,150.68,150.66,6.36561842]
[1751616236022,6.83658083,150.68,150.64,26.0]
[1751616236332,6.83658083,150.68,150.64,6.36561842]
[1751616236711,6.83658083,150.68,150.65,6.36561842]
[1751616238036,6.83658083,150.68,150.64,6.36561842]
[1751616239637,13.20219925,150.68,150.61,52.20964886]
[1751616239840,6.36561842,150.66,150.62,6.36561842]
[1751616240714,6.36561842,150.66,150.61,7.56]
[1751616240918,6.36561842,150.66,150.61,13.92561842]
[1751616241632,6.63790242,150.65,150.61,13.92561842]
[1751616243136,6.63790242,150.65,150.61,7.56]
[1751616243324,6.63790242,150.65,150.61,13.92561842]
[1751616244328,6.63790242,150.65,150.62,6.36561842]
[1751616247218,6.63746183,150.66,150.62,6.36561842]
[1751616247541,6.63746183,150.66,150.63,6.36561842]
[1751616251923,6.6370213,150.67,150.64,6.36561842]
[1751616252128,0.2,150.68,150.65,6.36561842]
[1751616253037,6.83677157,150.68,150.65,6.36561842]
[1751616253223,6.83677157,150.68,150.66,6.36561842]
[1751616253628,6.83677157,150.68,150.62,18.64964886]
[1751616253941,6.83677157,150.68,150.66,6.36561842]
[1751616254637,0.2,150.68,150.67,6.36561842]
[1751616260953,0.2,150.68,150.64,6.63834306]
[1751616261135,0.2,150.68,150.67,6.36561842]
[1751616262257,13.20223149,150.68,150.61,14.19948049]
[1751616262442,13.20223149,150.68,150.63,6.36561842]
[1751616262640,6.83661307,150.68,150.64,6.36561842]
[1751616262842,13.20223149,150.68,150.64,6.36561842]
[1751616263535,13.20223149,150.68,150.63,6.36561842]
[1751616264839,6.83661307,150.68,150.63,6.36561842]
[1751616265135,13.20223149,150.68,150.63,6.36561842]
[1751616265555,13.20223149,150.68,150.64,6.36561842]
[1751616266031,13.20223149,150.68,150.62,6.63918781]
[1751616266231,13.20223149,150.68,150.64,6.36561842]
[1751616266450,13.20223149,150.68,150.62,6.63918781]
[1751616266647,13.20223149,150.68,150.64,6.36561842]
[1751616269258,13.20223149,150.68,150.62,6.63918781]
[1751616269434,13.20223149,150.68,150.64,6.36561842]
[1751616269636,6.83661307,150.68,150.64,6.36561842]
[1751616269850,13.20223149,150.68,150.64,6.36561842]
[1751616270052,13.20223149,150.68,150.63,6.36561842]
[1751616271564,6.36561842,150.67,150.61,40.19950795]
[1751616271783,6.36561842,150.62,150.56,5.19820838]
[1751616271934,6.36561842,150.6,150.55,6.46561842]
[1751616272246,6.36561842,150.56,150.55,0.1]
[1751616272568,32.2774,150.6,150.55,0.1]
[1751616272569,6.36561842,150.58,150.55,0.1]
[1751616273845,6.36561842,150.57,150.55,0.1]
[1751616274266,13.0068541,150.58,150.55,0.1]
[1751616274753,6.2774,150.6,150.56,6.36561842]
[1751616275064,6.36561842,150.61,150.56,6.36561842]
[1751616275246,6.36561842,150.61,150.55,6.74205516]
[1751616275567,6.36561842,150.6,150.56,6.36561842]
[1751616276566,6.36561842,150.61,150.56,6.36561842]
[1751616276763,6.36561842,150.61,150.57,6.36561842]
[1751616277061,6.36561842,150.6,150.56,6.36561842]
[1751616277446,6.36561842,150.61,150.57,6.36561842]
[1751616278044,6.63941801,150.62,150.57,6.36561842]
[1751616278250,6.36561842,150.61,150.57,6.36561842]
[1751616279162,6.36561842,150.61,150.57,13.00703506]
[1751616279749,6.36561842,150.62,150.58,6.36561842]
[1751616279961,23.90169765,150.67,150.6,6.36561842]
[1751616280170,8.1079,150.67,150.61,6.36561842]
[1751616280343,8.1079,150.67,150.62,6.36561842]
[1751616280669,6.36561842,150.66,150.62,6.36561842]
[1751616281038,14.47351842,150.67,150.62,6.36561842]
[1751616281243,14.47351842,150.67,150.63,6.36561842]
[1751616281670,7.89211842,150.67,150.63,6.36561842]
[1751616281875,32.83662308,150.68,150.63,6.36561842]
[1751616282167,39.2022415,150.68,150.63,6.36561842]
[1751616283153,13.2022415,150.68,150.63,13.00432067]
[1751616283748,13.2022415,150.68,150.6,44.64964886]
[1751616283749,13.2022415,150.68,150.62,6.63905977]
[1751616283947,13.2022415,150.68,150.63,6.36561842]
[1751616284149,6.83662308,150.68,150.63,6.36561842]
[1751616284359,13.2022415,150.68,150.63,6.36561842]
[1751616285666,6.56561842,150.68,150.62,18.64964886]
[1751616285871,0.2,150.68,150.65,6.36561842]
[1751616286472,0.2,150.68,150.62,18.64964886]
[1751616286473,0.2,150.68,150.66,6.36561842]
[1751616286948,0.2,150.68,150.62,18.64964886]
[1751616287149,0.2,150.68,150.66,6.36561842]
[1751616287564,0.2,150.68,150.65,6.36561842]
[1751616289756,6.83663599,150.68,150.64,6.36561842]
[1751616290354,6.83663599,150.68,150.65,6.36561842]
[1751616290557,0.2,150.68,150.65,6.36561842]
[1751616291577,6.83663082,150.68,150.65,6.36561842]
[1751616294065,6.83663082,150.68,150.64,6.36561842]
[1751616294649,6.83663082,150.68,150.63,6.63861791]
[1751616294855,6.83663082,150.68,150.62,25.28873228]
[1751616295174,13.20224924,150.68,150.64,6.36561842]
[1751616296079,13.00280928,150.67,150.63,6.36561842]
[1751616296453,13.00280928,150.67,150.61,14.09956446]
[1751616296779,13.00280928,150.67,150.62,6.36561842]
[1751616297575,13.00280928,150.67,150.63,6.36561842]
[1751616297778,0.2,150.68,150.63,6.36561842]
[1751616297779,6.83685024,150.68,150.63,13.00426676]
[1751616297966,6.83685024,150.68,150.65,6.36561842]
[1751616298366,0.2,150.68,150.65,6.36561842]
[1751616302581,0.2,150.68,150.65,13.00346666]
[1751616302956,0.2,150.68,150.65,6.36561842]
[1751616304884,0.2,150.68,150.65,13.00349605]
[1751616305084,0.2,150.68,150.66,6.36561842]
[1751616308291,0.2,150.68,150.65,6.36561842]
[1751616308688,6.83662212,150.68,150.65,6.36561842]
[1751616308874,6.83662212,150.68,150.64,6.36561842]
[1751616310715,6.83662212,150.68,150.61,7.46]
[1751616310886,6.36561842,150.65,150.61,13.82561842]
[1751616311202,6.36561842,150.63,150.56,6.64177982]
[1751616311378,7.9213,150.65,150.57,6.36561842]
[1751616311379,6.36561842,150.62,150.57,6.36561842]
[1751616312369,13.00524914,150.62,150.56,6.64177982]
[1751616312592,13.00524914,150.62,150.57,6.36561842]
[1751616313297,24.51653519,150.65,150.56,6.64177982]
[1751616313298,6.36561842,150.61,150.56,6.64177982]
[1751616313506,6.36561842,150.61,150.57,6.36561842]
[1751616314389,23.23420073,150.64,150.57,6.36561842]
[1751616314594,6.36561842,150.62,150.57,6.36561842]
[1751616315880,6.63966536,150.61,150.57,6.36561842]
[1751616316403,6.36561842,150.59,150.55,58.53526728]
[1751616317611,6.36561842,150.59,150.55,7.52]
[1751616317612,6.36561842,150.56,150.55,7.52]
[1751616317813,6.36561842,150.56,150.55,0.1]
[1751616318019,13.00748877,150.56,150.55,0.1]
[1751616318313,38.02275605,150.56,150.54,0.1]
[1751616318526,32.36561842,150.55,150.54,1e-08]
[1751616318724,33.07776728,150.55,150.49,0.1]
[1751616319007,6.36561842,150.5,150.49,0.1]
[1751616319884,32.36561842,150.5,150.49,0.1]
[1751616320100,39.01013669,150.5,150.4,26.0]
[1751616320304,6.36561842,150.45,150.4,32.36561842]
[1751616320510,6.36561842,150.48,150.43,6.36561842]
[1751616321018,49.25581395,150.5,150.45,6.36561842]
[1751616321019,6.64451827,150.5,150.45,6.36561842]
[1751616321325,5.76623504,150.57,150.4,32.36561842]
[1751616321326,8.0625,150.54,150.48,6.36561842]
[1751616321626,6.36561842,150.53,150.48,6.36561842]
[1751616322138,6.64333599,150.53,150.48,6.36561842]
[1751616322438,13.00895441,150.53,150.48,6.36561842]
[1751616322730,21.07099846,150.54,150.49,6.36561842]
[1751616323221,6.36561842,150.53,150.49,6.36561842]
[1751616323526,6.36561842,150.51,150.47,6.36561842]
[1751616323713,31.31226193,150.54,150.45,25.29635166]
[1751616323901,6.36561842,150.51,150.47,6.36561842]
[1751616324610,13.009667,150.52,150.47,6.36561842]
[1751616324817,6.64404858,150.52,150.48,6.36561842]
[1751616325113,6.36561842,150.53,150.48,6.36561842]
[1751616325114,13.00896623,150.53,150.48,6.36561842]
[1751616326639,13.00845944,150.54,150.49,6.36561842]
[1751616326817,13.00845944,150.54,150.5,6.36561842]
[1751616326818,6.64284102,150.54,150.5,6.36561842]
[1751616327433,6.36561842,150.56,150.52,6.36561842]
[1751616327607,6.36561842,150.56,150.51,6.36561842]
[1751616328311,8.1783,150.58,150.51,6.36561842]
[1751616328524,6.36561842,150.56,150.5,6.64451827]
[1751616328735,13.00704765,150.57,150.52,6.36561842]
[1751616328907,6.36561842,150.55,150.51,6.36561842]
[1751616329225,6.36561842,150.52,150.45,6.64672648]
[1751616329540,6.36561842,150.48,150.44,13.76561842]
[1751616329933,32.36561842,150.48,150.39,6.3252]
[1751616330230,6.36561842,150.45,150.4,6.36561842]
[1751616330428,26.0,150.48,150.4,6.36561842]
[1751616330610,13.01246742,150.45,150.4,6.36561842]
[1751616332334,13.01246742,150.45,150.41,6.36561842]
[1751616332834,13.01246742,150.45,150.4,6.64893589]
[1751616333034,13.01246742,150.45,150.41,6.36561842]
[1751616333219,13.01246742,150.45,150.4,6.36561842]
[1751616333933,13.01246742,150.45,150.41,6.36561842]
[1751616334925,13.01246742,150.45,150.39,25.29887042]
[1751616335126,13.01246742,150.45,150.4,6.36561842]
[1751616335312,32.36561842,150.41,150.38,0.1]
[1751616335651,6.36561842,150.39,150.38,1e-08]
[1751616335871,25.01526728,150.39,150.38,1e-08]
[1751616336018,26.0,150.41,150.38,1e-08]
[1751616336338,6.36561842,150.39,150.38,1e-08]